Cogmind - Beta 17.1 @@@ ROGUE MODE // 2026.09.07 @ 12:41:04 Player: opdo Result: Destroyed by 9F-8JO(x) with Makeshift Spear Performance ------------- Evolutions (0) 0 Regions Visited (4) 800 Robots Destroyed (32) 160 Value Destroyed (813) 813 Prototype IDs (4) 80 Alien Tech Used (0) 0 Bonus (7871) 7871 TOTAL SCORE: 9724 Bonus ------- Follower Combat Kills 571 Prayed to X0-1V1 5000 Major X0-1V1 Interference 2300 Cogmind --------- Core Integrity 0/300 Matter 232/800 Energy 1120/1300 System Corruption 12% Temperature Cool (0) Movement Flying (102) Ox1 Location -8/Scraptown Parts ------- > --- POWER (1) -------- (None) > --- PROPULSION (2) --- Biomechanical Wings Biomechanical Wings > --- UTILITY (2) ------ Large Storage Unit X0-1V1's Piety Tracker > --- WEAPON (2) ------- (None) > --- INVENTORY (15) --- Ion Engine Light Fission Core Carbon-fiber Leg Overtuned Scrapsphere Medium Storage Unit Light Armor Plating Heavy Armor Plating Hardened Light Armor Plating Improved Light Armor Plating Reactive Plating Gauss Rifle Peak State ------------ > --- POWER ------------ Light Angular Momentum Engine > --- PROPULSION ------- Aluminum Leg VSS Leg > --- UTILITY ---------- Large Storage Unit X0-1V1's Piety Tracker > --- WEAPON ----------- Heavy Assault Rifle Gauss Rifle > --- INVENTORY -------- Ion Engine Light Fission Core Carbon-fiber Leg Overtuned Scrapsphere Biomechanical Wings Biomechanical Wings Medium Storage Unit Light Armor Plating Heavy Armor Plating Hardened Light Armor Plating Improved Light Armor Plating Reactive Plating Shock Bomb Launcher [Rating: 33] Favorites ----------- Power Ion Engine Engine Ion Engine Power Core Light Nuclear Core Propulsion Aluminum Leg Treads Light Treads Leg Aluminum Leg Wheel Wheel Flight Unit Biomechanical Wings Utility Large Storage Unit Device X0-1V1's Piety Tracker Storage Large Storage Unit Processor Targeting Computer Protection Core Shielding Weapon Light Assault Rifle Ballistic Gun Light Assault Rifle Launcher Shock Bomb Launcher Slashing Weapon Makeshift Sword Piercing Weapon Makeshift Spear Build | -11 -10 -10 -8 -8 ------- Run | Yrd Mat Sub Rec Scr Slots Evolved . | . . . . . Power . | . . . . . Propulsion . | . . . . . Utility . | . . . . . Weapon . | . . . . . Parts Attached 39 | 8 11 7 7 6 Power 4 | 1 1 . 1 1 Engine 3 | 1 1 . . 1 Core 1 | . . . 1 . Reactor . | . . . . . Propulsion 15 | 2 6 2 3 2 Treads 4 | . 1 1 2 . Leg 7 | 2 4 . 1 . Wheel 2 | . 1 1 . . Hover . | . . . . . Flight 2 | . . . . 2 Utility 8 | 3 3 1 1 . Device 3 | 2 . . 1 . Storage 3 | 1 2 . . . Processor 1 | . 1 . . . Hackware . | . . . . . Protection 1 | . . 1 . . Artifact . | . . . . . Weapon 12 | 2 1 4 2 3 Energy Gun . | . . . . . Energy Cannon . | . . . . . Ballistic Gun 8 | 2 1 1 2 2 Ballistic Cannon . | . . . . . Launcher 2 | . . 1 . 1 Special Weapon . | . . . . . Impact Weapon . | . . . . . Slashing Weapon 1 | . . 1 . . Piercing Weapon 1 | . . 1 . . Special Melee Weapon . | . . . . . Unidentified Prototypes 1 | . . . 1 . Corrupted Parts 2 | . . . 1 1 System Corruption 12 | . . . 9 3 Parts Lost 20 | . 2 5 7 6 Power 4 | . 1 . 1 2 Propulsion 8 | . . 2 4 2 Utility . | . . . . . Weapon 8 | . 1 3 2 2 Highest Loss Streak 6 | . 1 3 6 6 To Critical Strikes 1 | . 1 . . . Average Backups 11 | 2 10 12 12 13 Power 1 | . 1 2 1 1 Propulsion 4 | 2 5 5 2 3 Utility 4 | . 1 2 6 6 Weapon 1 | . 2 2 1 1 Tool/Special . | . . . . . Unused Backups 19 | . 2 1 6 10 Power 3 | . . . 1 2 Propulsion 6 | . 1 . 3 2 Utility 7 | . . . 1 6 Weapon 3 | . 1 1 1 . Tool/Special . | . . . . . Average Slot Usage (%) 89 | . 99 98 82 72 Engine 8 | . 13 14 4 . Core 3 | . . . 5 12 Treads 7 | . 7 14 7 . Leg 13 | . 13 . 14 27 Wheel 5 | . 7 14 1 . Device 3 | . 2 . . 14 Storage 13 | . 14 14 12 14 Processor 3 | . 11 2 . . Protection 6 | . . 11 11 . Ballistic Gun 15 | . 28 10 13 1 Slashing Weapon 2 | . . 6 4 . Piercing Weapon 3 | . . 8 4 . Peak Build Rating 33 | 9 9 15 29 33 Average Rating 14 | 6 7 12 17 24 On Entrance 12 | . 7 9 15 29 Avg Prop Armor Cover (%) 13 | . 12 12 18 . Naked Turns . | . . . . . Heaviest Build 37 | 12 28 31 32 37 Greatest Support 42 | 20 20 20 42 22 Greatest Overweight (x) 3 | . 2 3 2 1 Average Overweight (x) . | . . 1 . 1 Largest Inventory Capacity 15 | 8 15 15 15 15 Average Capacity 14 | 7 12 15 15 15 Most Carried 15 | 5 14 15 15 15 Average Carried 12 | 3 10 12 14 14 Final Capacity 15 | 8 15 15 15 15 Final Carried 15 | 5 14 11 15 12 Class Distribution -------------------- 69% | Mutant 30% | Commander-Mutant Dominant Class ---------------- Mutant | -10/Materials Mutant | -10/Subcaves Mutant | -8/Recycling Commander-Mutant | -8/Scraptown Resources | -11 -10 -10 -8 -8 ----------- Run | Yrd Mat Sub Rec Scr Matter Collected 1022 | 294 187 85 229 227 Remotely . | . . . . . Salvage Created 984 | 59 314 174 437 . Parts 64 | 9 28 10 17 . Haulers Intercepted 1 | . 1 . . . Recyclers Shooed 1 | 1 . . . . Parts Field Recycled . | . . . . . Retrieved Matter . | . . . . . Parts Self-Destructed 20 | . . 20 . . Prevented . | . . . . . Parts Restored . | . . . . . Kills | -11 -10 -10 -8 -8 ------- Run | Yrd Mat Sub Rec Scr Combat Hostiles Destroyed 25 | . 10 6 9 . Melee 9 | . . 2 7 . Guns 14 | . 10 2 2 . AOE 2 | . . 2 . . Classes Destroyed 10 | 1 4 2 3 . Tunneler 3 | 3 . . . . Hauler 1 | . 1 . . . Turret 2 | . . 2 . . Watcher 1 | . 1 . . . Swarmer 11 | . 6 4 1 . Grunt 6 | . 4 1 1 . Brawler 2 | . . . 2 . Duelist 1 | . . . 1 . Sentry 3 | . . 1 2 . Programmer 2 | . . . 2 . Best Kill Streak 6 | 2 4 6 4 . Combat Bots Only 4 | . 4 4 4 . Max Kills in Single Turn 1 | 1 1 1 1 . Gunslinging . | . . . . . Exploded 1 | . . 1 . . Melee 1 | . . 1 1 . Uniques/NPCs Destroyed . | . . . . . Combat | -11 -10 -10 -8 -8 -------- Run | Yrd Mat Sub Rec Scr Hostile Shots Fired 251 | . 86 71 64 30 Missed 86 | . 39 19 15 13 Hits 165 | . 47 52 49 17 Melee 12 | . . . 6 6 Projectile 153 | . 47 52 43 11 Critical Strikes 5 | . 2 . 1 2 Part Disruptions 1 | . . . 1 . Damage Taken 2287 | . 454 531 721 581 Core 516 | . 35 112 143 226 Absorbed by Shields 42 | . . . 42 . Redirected to Shielding 42 | . . 19 23 . Core Remaining (%) 100 | 100 . . . . Volleys Fired 73 | 6 34 13 12 8 Largest 2 | 2 2 2 2 2 Hottest 59 | 40 40 40 46 59 Shots Fired 138 | 12 67 22 26 11 Gun 131 | 12 67 18 26 8 Cannon . | . . . . . Launcher 7 | . . 4 . 3 Special . | . . . . . Kinetic 131 | 12 67 18 26 8 Thermal . | . . . . . Explosive 4 | . . 4 . . Electromagnetic 3 | . . . . 3 Robot Hit Streak 9 | 2 9 9 4 9 Robot Miss Streak 5 | 5 3 4 3 1 Penetration Max . | . . . . . Secondary Targets 2 | . . 1 1 . Max Gunslinging Chain 1 | . . 1 1 . Shots Hit Robots 117 | 3 47 21 36 10 Core Hits 50 | 3 19 10 12 6 Critical Kills . | . . . . . Critical Parts Destroyed . | . . . . . Critical Strikes 1 | . . . 1 . Sever 1 | . . . 1 . Melee Attacks 45 | . . 15 30 . Impact . | . . . . . Slashing 27 | . . 8 19 . Piercing 18 | . . 7 11 . Sneak Attacks . | . . . . . Combat Hostiles . | . . . . . Follow-up Attacks 3 | . . 1 2 . Damage Inflicted 2042 | 51 473 400 894 224 Guns 978 | 51 466 136 216 109 Cannons . | . . . . . Explosions 170 | . . 55 . 115 Melee 882 | . . 209 673 . Ramming 12 | . 7 . 5 . Kinetic 978 | 51 466 136 216 109 Thermal . | . . . . . Explosive 55 | . . 55 . . Electromagnetic 115 | . . . . 115 Impact . | . . . . . Slashing 661 | . . 182 479 . Piercing 221 | . . 27 194 . Highest Corruption 15 | . . 2 15 12 Average Corruption 7 | . . 2 9 9 Corruption Purged . | . . . . . Corruption Blocked . | . . . . . Effects 54 | . . 7 32 15 Message Errors 11 | . . 1 8 2 Matter Fused 12 | . . 1 7 4 Heat Flow Errors 5 | . . . 3 2 Energy Discharges 10 | . . 2 6 2 Parts Rejected 2 | . . . 2 . Data Loss (minor) 6 | . . 2 1 3 Data Loss (major) 2 | . . . 2 . Misfires 2 | . . . 2 . Alerts 3 | . . 1 . 2 Weapon Failures 1 | . . . 1 . Overload Shots . | . . . . . Overflow Damage 73 | . . 30 43 . Projectiles . | . . . . . Explosions 3 | . . 3 . . Melee 70 | . . 27 43 . Knockbacks . | . . . . . Impact . | . . . . . Kinetic . | . . . . . Secondary . | . . . . . Self-Inflicted Damage 37 | . . 37 . . Shots 2 | . . 2 . . Rammed . | . . . . . Targets Rammed 3 | . 2 . 1 . Kicked 3 | . 2 . 1 . Crushed . | . . . . . Highest Temperature 239 | . 12 5 239 137 Average Temperature 63 | . 6 5 130 77 Received Heat Transfer 479 | . 126 195 137 21 Siege Activations . | . . . . . Martial Activations . | . . . . . Shielding Activations . | . . . . . Robots Disrupted 1 | . . . . 1 Combat Hostiles 1 | . . . . 1 Robots Corrupted . | . . . . . Combat Hostiles . | . . . . . Parts Fried . | . . . . . Impact Corruptions . | . . . . . Robots Melted . | . . . . . Combat Hostiles . | . . . . . Parts Melted . | . . . . . Heat Transferred . | . . . . . Parts Sabotaged . | . . . . . Parts Stolen . | . . . . . Parts Stripped . | . . . . . Power Chain Reactions . | . . . . . Alert | -11 -10 -10 -8 -8 ------- Run | Yrd Mat Sub Rec Scr Maximum Alert Level 1 | . . . 1 . Low Security (%) 97 | 100 100 . 94 . Level 1 2 | . . . 5 . Level 2 . | . . . . . Level 3 . | . . . . . Level 4 . | . . . . . Level 5 . | . . . . . High Security . | . . . . . Max Security . | . . . . . Peak Influence 268 | 5 145 . 268 . Initial 18 | . . . 18 . Average 54 | 1 46 . 65 . Influence Increases 1232 | 15 284 220 713 . Destroy 0b10 Robot/C 680 | . 200 160 320 . Destroy 0b10 Robot/NC 35 | 15 10 . 10 . Destroy Leader 54 | . 44 . 10 . Allied During Kill 18 | . . . 18 . Successful Hack 35 | . 15 . 20 . Select Force Hacks 120 | . . . 120 . Destroy Structure 2 | . . . 2 . Lose Combat Pursuer 90 | . 15 60 15 . Miscellaneous 198 | . . . 198 . Influence Decreases 1232 | 15 284 182 501 250 Entered New Map 270 | . . . 20 250 Time Decay 802 | 15 264 142 381 . Lost Part 120 | . 20 40 60 . Lost Ally 40 | . . . 40 . Squads Dispatched 3 | . 1 . 2 . Investigation 3 | . 1 . 2 . Extermination . | . . . . . Reinforcement . | . . . . . Assault . | . . . . . Garrison . | . . . . . Intercept . | . . . . . Searches Triggered . | . . . . . Construction Impeded . | . . . . . Haulers Reinforced . | . . . . . Active Scanning Responses . | . . . . . Cargo Convoy Interrupts . | . . . . . Stealth | -11 -10 -10 -8 -8 --------- Run | Yrd Mat Sub Rec Scr Distress Signals 3 | . 2 . 1 . Communications Jammed . | . . . . . Distress Signals . | . . . . . Times Spotted 60 | . 18 10 18 14 Peak Tracking Total 8 | . 7 4 5 8 Tactical Retreats 4 | . 1 1 1 1 Traps | -11 -10 -10 -8 -8 ------- Run | Yrd Mat Sub Rec Scr Traps Triggered 1 | . 1 . . . Indirectly . | . . . . . Trap Hack Attempts . | . . . . . Triggered . | . . . . . Disarmed . | . . . . . Reprogrammed . | . . . . . Reused . | . . . . . Traps Extracted . | . . . . . Installed . | . . . . . Triggered . | . . . . . Machines | -11 -10 -10 -8 -8 ---------- Run | Yrd Mat Sub Rec Scr Machines Disabled 1 | . . 1 . . Max in Single Turn 1 | . . 1 . . Machines Repaired . | . . . . . Machines Dismantled . | . . . . . Machines Sabotaged . | . . . . . Overloaded Fab Kills . | . . . . . Hacking | -11 -10 -10 -8 -8 --------- Run | Yrd Mat Sub Rec Scr Machines Accessed 17 | . 5 . 12 . Terminals 11 | . 5 . 6 . Fabricators . | . . . . . Repair Stations . | . . . . . Recycling Units 5 | . . . 5 . Scanalyzers . | . . . . . Garrison Access . | . . . . . Total Hacks 52 | . 16 . 36 . Successful 35 | . 11 . 24 . Failed 17 | . 5 . 12 . Catastrophic 2 | . . . 2 . Database Lockouts . | . . . . . Manual 29 | . 12 . 17 . Terminals 36 | . 16 . 20 . Fabricators . | . . . . . Repair Stations . | . . . . . Recycling Units 11 | . . . 11 . Scanalyzers . | . . . . . Garrison Access . | . . . . . Terminal Hacks 12 | . 4 . 8 . Record 5 | . . . 5 . Robot Analysis 1 | . . . 1 . Prototype ID Bank 1 | . . . 1 . Level Access Points 1 | . 1 . . . Terminal Index 1 | . . . 1 . Alert Level 1 | . 1 . . . Locate Traps 1 | . 1 . . . Zone Layout 1 | . 1 . . . Fabricator Hacks . | . . . . . Repair Station Hacks . | . . . . . Recycling Unit Hacks 5 | . . . 5 . Report Inventory 5 | . . . 5 . Scanalyzer . | . . . . . Garrison Access Hacks . | . . . . . Unauthorized Hacks 18 | . 7 . 11 . Terminals 14 | . 7 . 7 . Botnet 3 | . 2 . 1 . Skim 11 | . 5 . 6 . Fabricators . | . . . . . Repair Stations . | . . . . . Recycling Units 4 | . . . 4 . Tunnel 4 | . . . 4 . Scanalyzers . | . . . . . Garrison Access . | . . . . . Data Cores Recovered . | . . . . . Used . | . . . . . Hacking Detections 11 | . 5 . 6 . Full Trace Events 2 | . . . 2 . Feedback Events . | . . . . . Feedback Blocked . | . . . . . Robot Schematics Acquired . | . . . . . Robots Built . | . . . . . Authchips . | . . . . . Time . | . . . . . Total Robot Build Rating . | . . . . . Part Schematics Acquired . | . . . . . Parts Built . | . . . . . Authchips . | . . . . . Time . | . . . . . Total Part Build Rating . | . . . . . Part Studies Acquired . | . . . . . Parts Repaired . | . . . . . Time . | . . . . . Parts Recycled . | . . . . . Recycled Matter . | . . . . . Retrieved Matter . | . . . . . Retrieved Components . | . . . . . Parts Scanalyzed . | . . . . . Part Schematics Acquired . | . . . . . Parts Damaged . | . . . . . Bothacking | -11 -10 -10 -8 -8 ------------ Run | Yrd Mat Sub Rec Scr Used RIF Installer . | . . . . . Robots Hacked . | . . . . . Non-combat . | . . . . . Combat . | . . . . . Robot Hacks Applied . | . . . . . Relay Couplers Released . | . . . . . Fabnet Peak Effective % . | . . . . . Robots Rewired 11 | . . . 11 . Allies Hacked . | . . . . . Hacks Repelled . | . . . . . Allies | -11 -10 -10 -8 -8 -------- Run | Yrd Mat Sub Rec Scr Total Allies 12 | . . . 11 1 Largest Group 9 | . . . 9 9 Highest-Rated Group 588 | . . . 151 588 Highest-Rated Ally 464 | . . . 27 464 Total Orders . | . . . . . Ally Attacks 56 | . . . 32 24 Total Damage 2064 | . . . 635 1429 Kills 17 | . . . 9 8 Allies Corrupted . | . . . . . Allies Melted . | . . . . . X0-1V1 Amusement Gains 38 | . 13 5 . 20 Average Entertainment 7 | . 13 8 6 20 Good Acts 15 | . . 4 11 . Bad Acts 16 | . . 3 13 . Intel | -11 -10 -10 -8 -8 ------- Run | Yrd Mat Sub Rec Scr Active Infowar (turns) 204 | 42 162 . . . Terrain 27 | 27 . . . . Seismic 177 | 15 162 . . . Robot Analysis Total 1 | . . . 1 . Derelict Logs Recovered 1 | . . 1 . . Drone Launches . | . . . . . Drone Recoveries . | . . . . . Exploration | -11 -10 -10 -8 -8 ------------- Run | Yrd Mat Sub Rec Scr Turns Passed 2803 | 113 805 473 1054 358 Spaces Moved 1339 | 70 338 272 484 175 Core 6 | 6 . . . . Treads 239 | . . 73 166 . Legs 664 | 64 221 . 204 175 Wheels 430 | . 117 199 114 . Hover . | . . . . . Flight . | . . . . . Fastest Speed 50 | 50 110 110 110 185 Average Speed 146 | 114 119 145 156 185 Slowest Speed 260 | 120 190 240 260 185 Overloaded Moves . | . . . . . Propulsion Burnouts . | . . . . . Robots Hopped . | . . . . . Potential Cave-ins . | . . . . . Cave-ins Triggered . | . . . . . Exploration Rate (%) 38 | 4 60 18 90 20 Regions Visited 4 Branch Regions 3 Pre-discovered Areas 6 | . 2 . 4 . Known Exits Taken 2 | . 1 1 . . Unknown Exits Taken 2 | 1 . . 1 . Scrap Searched 4 | . . 1 . 3 Spaces Dug 2 | . . 1 1 . Terrain Destroyed 17 | . . 16 1 . Melee 2 | . . 1 1 . Projectile . | . . . . . AOE 15 | . . 15 . . Terrain Rammed . | . . . . . Walls Destroyed . | . . . . . Machines Disabled . | . . . . . Actions | -11 -10 -10 -8 -8 --------- Run | Yrd Mat Sub Rec Scr Total 2017 | 88 682 318 732 197 Wait 310 | . 279 9 21 1 Move 1335 | 69 337 271 483 175 Hop . | . . . . . Pick Up 37 | 5 12 4 13 3 Fast Attach 12 | 7 . . 3 2 Attach 16 | . 2 5 6 3 Detach . | . . . . . Swap 14 | 1 9 2 1 1 Drop 19 | . 7 1 7 4 Fire 73 | 6 34 13 12 8 Melee 40 | . . 13 27 . Ram . | . . . . . Kick 3 | . 2 . 1 . Crush . | . . . . . Escape Stasis . | . . . . . Rewire 158 | . . . 158 . Trap . | . . . . . Miscellaneous . | . . . . . Route ------- -11/Scrapyard -10/Materials (discovered 5 exits: *Mat x3 / [*Min] / *Sub) -10/Subcaves (discovered 3 exits: Mat x2 / *Rec) -8/Recycling (discovered 2 exits: [*Fac] / [*Scr]) -8/Scraptown History --------- Turn | Location | Event 6 | -11/Scrapyard | Discovered new exit (range 16) 114 | -11/Scrapyard | Entered Materials 247 | -10/Materials | Discovered new exit (range 13) 249 | -10/Materials | Identified exit to Materials 312 | -10/Materials | Build established: Mutant 552 | -10/Materials | Learned 2 Mines zone layouts 612 | -10/Materials | Learned location of Mines (-10) 623 | -10/Materials | Discovered new exit (range 9) 663 | -10/Materials | Learned Storage trap positions 732 | -10/Materials | Learned Storage trap positions 752 | -10/Materials | Identified exit to Subcaves 763 | -10/Materials | Learned 2 Mines zone layouts 813 | -10/Materials | Learned 2 Materials zone layouts 904 | -10/Materials | Learned location of Subcaves (-10) 910 | -10/Materials | Prayed at D.C.S.S. Altar Unit 919 | -10/Materials | Entered Subcaves 920 | -10/Subcaves | Approached by a straggling Scientist 920 | -10/Subcaves | Identified exit to Materials 920 | -10/Subcaves | Identified exit to Recycling 975 | -10/Subcaves | Core integrity permanently improved by X0-1V1 (+200) 1084 | -10/Subcaves | A swath of the cavern ceiling suddenly collapsed 1112 | -10/Subcaves | X0-1V1 caused items to flee you 1198 | -10/Subcaves | Lost 3 parts (2n1w) 1220 | -10/Subcaves | Core integrity restored by X0-1V1 (+121) 1392 | -10/Subcaves | Entered Recycling 1554 | -8/Recycling | Weapon slot count temporarily expanded by X0-1V1 (+4) 1657 | -8/Recycling | Heat dissipation permanently improved by X0-1V1 (+30; -150 max core) 1701 | -8/Recycling | Discovered new exit (range 16) 1854 | -8/Recycling | System corruption reached 10% 1884 | -8/Recycling | Lost 6 parts (1p3n2w) 1947 | -8/Recycling | Weapon slot count reverted to normal (-4) 2247 | -8/Recycling | Build established: Commander-Mutant 2363 | -8/Recycling | X0-1V1 vaporized surrounding terrain (radius 21) 2375 | -8/Recycling | Learned Factory scanalyzer intel 2389 | -8/Recycling | X0-1V1 added 0b10 threat records associated with you (considerable) 2393 | -8/Recycling | Scanned before Scraplab entrance 2421 | -8/Recycling | Entered Scraplab 2423 | -8/Recycling | X0-1V1 put everyone to sleep 2436 | -8/Recycling | Discovered new exit (range 2) 2438 | -8/Recycling | Learned location of 1 exit from Storage 2446 | -8/Recycling | Entered Scraptown 2446 | -8/Scraptown | Accompanied by 9 allies 2720 | -8/Scraptown | Visited Awakened 2735 | -8/Scraptown | Visited IN-MT5's Study 2753 | -8/Scraptown | Visited Shadow of the Wyrm 2764 | -8/Scraptown | X0-1V1 brought Wyrm Statue to life 2764 | -8/Scraptown | Attacked by Scraptown defenders 2794 | -8/Scraptown | Core integrity fell below 50% 2801 | -8/Scraptown | Core integrity fell below 20% 2804 | -8/Scraptown | Destroyed by 9F-8JO(x) with Makeshift Spear Last Messages --------------- 02777_ Acquired Lgt. Angular Momentum Engine. 02781_ GA-SZV(E) destroyed. 02786_ Acquired Corrupted Gauss Rifle. 02786_ Integrated Corrupted Gauss Rifle (+3). 02788_ S0-B6F(g) destroyed. 02788_ Aluminum Leg destroyed. 02788_ Lgt. Angular Momentum Engine destroyed. 02790_ A9-U2V(j) destroyed. 02791_ AM-B99(E) misfires. 02793_ System corrupted: Component data lost. 02794_ V1-RZG(p) shuts down. 02796_ AM-B99(E) IFF system glitched. 02797_ Critical hit (Impale). 02798_ VR-SPE(E) IFF system glitched. 02800_ Hvy. Assault Rifle destroyed. 02800_ VSS Leg destroyed. 02801_ VR-SPE(E) destroyed. 02803_ Shock Bomb Launcher destroyed. 02804_ Critical hit (Impale). 02804_ X0-1V1 snickers! Map ----- +----------------------------------------------------+ | ?????????????????????????????????????????????????? | | ?????????????????????????????????????????????????? | | ?????????????????????????????????????????????????? | | ?????????????????????????????????????????????????? | | ?????????????????????????????????????????????????? | | ?????????????????????????????????????????????????? | | ?????????????????????????????????????????????????? | | ?????????????????????????????????????????????????? | | ?????????????????????????????????????????????????? | | ????????????????????????????? ???????????????? | | ????????????????????????????# #??????????????? | | ????????????????????????????# #??????????????? | | ????????????????????????????# #??????????????? | | ????????????????????????????# #??????????????? | | ????????????????????????????# #??????????????? | | ????????????????????????????# ! #??????????????? | | ????????????????????????????# = #??????????????? | | ?????????????????????######## D #??????????????? | | ???????????????????###" #DD #??????????????? | | ???????????????????# # #??????????????? | | ???????????????????##" %=!! #??????????????? | | ???????????????????# * = %= ################ | | ???????????????????# != % ! = | | ???????????????????##" !=/%=% [ | | ???????????????????# *%=!%!* % | | ???????????????????###"!x@% | | ?????????????????????###; | | ??????????????????????# | | ?????????????????????# Ep | | ?????????????????????## | | ???????????????????? =*!############ ####### ### | | ???????????????????? !%!#????????? ???#" ? | | ????????????????????###[! #??????? """#?#" | | ??????????????????????#j #?????#" " #?#" | | ??????????????????????# ??????#"" " #?#" "" | | ??????????????????????# ??????#""" " #?#" "" | | ??????????????????????# ??????#"" " #?#" "" | | ??????????????????????# ??????#" "###?#" | | ??????????????????????# ???????" " ?????" | | ??????????????????????# ???????"""""""?????""""" | | ??????????????#####???? ???????#######?????##### | | ??????????????#"""#????? #??????????????????????? | | ??????????????#" "#????? #??????????????????????? | | ??????????????# [ #???? #??????????????????????" | | ??????????????# [ ##### #?????????????????????"" | | ??????????????# ##????????????##????"""" | | ??????????????# #???????????? ? | | ??????????????# #????###????## #????"" | | ??????????????##### ### ##???"""""???"" "#?????"" | | ??????????????????# #????????"" ""??""" "#??????? | +----------------------------------------------------+ Best States ------------- Heat Dissipation 55 Energy Generation 18 Energy Capacity 1360 Matter Stores 300 Matter Capacity 800 Sight Range 21 Terrain Scan Range 16 Terrain Scan Density 10 Core Shielding 20 Evasion (%) 55 Targeting Accuracy 5 Recoil Reduction 2 Item Schematics ----------------- None Robot Schematics ------------------ None Fabricated ------------ Nothing Repaired ---------- Nothing Studied --------- None Alien Tech Used ----------------- None Achievements -------------- None Challenges ------------ None Game ------ Seed SniperWeldingLance Manual? 0 Play Time 00:16:46 Cumulative 164.2 hours Start 2026.09.07 @ 12:23:41 End 2026.09.07 @ 12:41:04 Sessions 1 Manual Loads 0 Difficulty Rogue Special Mode None Game No. 408 Rogue 406 Adventurer 2 Explorer 0 Win Type - Total 3 Types 3/0/0/0/0/0/0/0/0/0 Lore% 80 Gallery% 62 Achievement% 47 Wizard Run 0 Options --------- Layout 2 ASCII 0 Keyboard 0 Movement Numpad Keybinds 0 Fullscreen 2 Font 24/Smallcaps Map View 50x44 Zoom Use 0% Tactical HUD 1 Map Filters NONE Filters NONE Steam 1 RUN: e8e91c6f-bdf6-449d-b96e-99bf7c92a3d8